Workbook

Sheet Лист1
L2: "Утверждаю"
K3: Директор МБОУ "СОШ с. Тумутук"
K4: Ф.Ф.Кашапова__________
D5: Примерное двухнедельное цикличное меню для обучающихся
C6: в МБОУ "СОШ с.Тумутук" Азнакаевского муниципального района РТ
D7: возрастная категория 11-17лет. На 2020-2021год
A8: № | B8: Наименование блюд | E8: Выход | F8: Пищевые вещества,(г) | I8: Энерг. | K8: Витамины(мг) | N8: Минеральные вещества(мг)
A9: рец-ры | E9: г | F9: Белки | G9: Жиры | H9: Углев | I9: Цен | J9: В1 | K9: С | L9: А | M9: Е | N9: Са | O9: Р | P9: Мg | Q9: Fe
C10: 1 день
C11: Завтрак
A12: 97/2004 | B12: Сыр (порционно) | E12: 20 | F12: 4.64 | G12: 5.9 | H12: 0 | I12: 72.8 | J12: 0.01 | K12: 0.14 | L12: 52 | M12: 0 | N12: 176 | O12: 100 | P12: 7 | Q12: 0.2
A13: 182/2015ДеЛи | B13: Каша рисовая молочная с маслом сливочным | E13: 210/10 | F13: 5.1 | G13: 10.72 | H13: 33.42 | I13: 251 | J13: 0.02 | K13: 1.17 | L13: 23.7 | M13: 0.2 | N13: 130.09 | O13: 94.2 | P13: 30.12 | Q13: 0.47
A14: 685/2004 | B14: Чай с сахаром | E14: 200/15 | F14: 0.2 | G14: 0 | H14: 13.7 | I14: 56 | J14: 0.008 | K14: 3.75 | L14: 0 | M14: 0.075 | N14: 9.97 | O14: 7.5 | P14: 6.5 | Q14: 0.197
B15: Хлеб сельский 1 сорт | E15: 60 | F15: 4.56 | G15: 0.54 | H15: 28.02 | I15: 135.18 | J15: 0.09 | K15: 0 | L15: 0 | M15: 0.2 | N15: 13.8 | O15: 50.4 | P15: 19.8 | Q15: 1.14
C16: Итого | F16: =SUM(F12:F15) -> 14.5 | G16: 17.16 | H16: 75.14 | I16: 514.98 | J16: 0.128 | K16: 5.06 | L16: 75.7 | M16: 0.475 | N16: 329.86 | O16: 252.1 | P16: 63.42 | Q16: 2.007
C17: Обед
A18: 67/2015ДеЛи | B18: Винегрет овощной | E18: 100 | F18: 1.4 | G18: 10.04 | H18: 7.29 | I18: 125.1 | J18: 0 | K18: 9.6 | L18: 0 | M18: 0 | N18: 31.2 | O18: 0 | P18: 19.5 | Q18: 0.83
A19: 268/2015ДеЛи | B19: Котлеты,(биточки,шницел) рубленные из говядины | E19: 100 | F19: 15.5 | G19: 11.55 | H19: 15.7 | I19: 228.75 | J19: 0.1 | K19: 0.15 | L19: 28.75 | M19: 2.51 | N19: 43.75 | O19: 166.38 | P19: 32.13 | Q19: 1.5
A20: 302/2011ДеЛи | B20: Каша гречневая рассыпчатая с маслом | E20: 200 | F20: 11.5 | G20: 8.12 | H20: 51.52 | I20: 325 | J20: 0.14 | K20: 0 | L20: 1.54 | M20: 3.42 | N20: 19.6 | O20: 29.54 | P20: 1.9 | Q20: 1.6
A21: 693/2004 | B21: Какао с молоком | E21: 200 | F21: 3.78 | G21: 0.67 | H21: 21 | I21: 105 | J21: 0.2 | K21: 1.33 | L21: 0 | M21: 0 | N21: 133.33 | O21: 111.11 | P21: 25.56 | Q21: 2
B22: Хлеб сельский 1 сорт | E22: 40 | F22: 2.6 | G22: 0.4 | H22: 14 | I22: 70 | J22: 0.02 | K22: 0 | L22: 0 | M22: 0.4 | N22: 9.4 | O22: 42.2 | P22: 12.6 | Q22: 1.04
B23: Хлеб белый 1 сорт | E23: 60 | F23: 4.56 | G23: 0.48 | H23: 29.52 | I23: 142 | J23: 0.066 | K23: 0 | L23: 0 | M23: 0.66 | N23: 12 | O23: 39 | P23: 8.4 | Q23: 0.66
C24: Итого | F24: =SUM(F18:F23) -> 39.34 | G24: 31.26 | H24: 139.03 | I24: 995.85 | J24: 0.526 | K24: 11.08 | L24: 30.29 | M24: 6.99 | N24: 249.28 | O24: 388.23 | P24: 100.09 | Q24: 7.63
C26: 2 день
C27: Завтрак
A28: 1/2011ДеЛи | B28: Масло сливочное (порционно) | E28: 15 | F28: 0 | G28: 12.3 | H28: 0.15 | I28: 112.5 | J28: 0 | K28: 0 | L28: 88.5 | M28: 0.1 | N28: 1.5 | O28: 3 | P28: 0 | Q28: 0
A29: 182/2015ДеЛи | B29: Каша пшеничная молочная | E29: 210 | F29: 7.51 | G29: 11.72 | H29: 37.05 | I29: 285 | J29: 0.11 | K29: 1.17 | L29: 52.8 | M29: 0.2 | N29: 138 | O29: 121 | P29: 47.6 | Q29: 1.23
A30: 685/2004 | B30: Чай с сахаром | E30: 200/15 | F30: 0.2 | G30: 0 | H30: 13.7 | I30: 56 | J30: 0.008 | K30: 3.75 | L30: 0 | M30: 0.075 | N30: 9.97 | O30: 7.5 | P30: 6.5 | Q30: 0.197
B31: Хлеб сельский 1 сорт | E31: 60 | F31: 4.56 | G31: 0.54 | H31: 28.02 | I31: 135.18 | J31: 0.09 | K31: 0 | L31: 0 | M31: 0.2 | N31: 13.8 | O31: 50.4 | P31: 19.8 | Q31: 1.14
C32: Итого | F32: =SUM(F28:F31) -> 12.27 | G32: =SUM(G28:G31) -> 24.56 | H32: =SUM(H28:H31) -> 78.92 | I32: 588.68 | J32: 0.208 | K32: 4.92 | L32: 141.3 | M32: 0.575 | N32: 163.27 | O32: 181.9 | P32: 73.9 | Q32: 2.567
C34: Обед
A35: 52/2011ДеЛи | B35: Салат из свеклы отварной | E35: 100 | F35: 1.43 | G35: 6.09 | H35: 8.36 | I35: 93.9 | J35: 0.02 | K35: 9.5 | L35: 0 | M35: 0 | N35: 35.15 | O35: 40.97 | P35: 20.9 | Q35: 1.33
A36: 259/2011ДеЛи | B36: Жаркое по домашнему | E36: 80/160 | F36: 27.53 | G36: 7.47 | H36: 21.95 | I36: 265 | J36: 0.21 | K36: 8.97 | L36: 24 | M36: 0 | N36: 31.1 | O36: 337 | P36: 65.7 | Q36: 4.03
A37: 692/2004 | B37: Кофейный напиток с молоком | E37: 200 | F37: 2.5 | G37: 1.8 | H37: 20.5 | I37: 108 | J37: 0 | K37: 0.26 | L37: 0.05 | M37: 0 | N37: 53.33 | O37: 39.15 | P37: 6.09 | Q37: 0.1
B38: Хлеб сельский 1 сорт | E38: 40 | F38: 2.6 | G38: 0.4 | H38: 14 | I38: 70 | J38: 0.02 | K38: 0 | L38: 0 | M38: 0.4 | N38: 9.4 | O38: 42.2 | P38: 12.6 | Q38: 1.04
B39: Хлеб белый 1 сорт | E39: 60 | F39: 4.56 | G39: 0.48 | H39: 29.52 | I39: 142 | J39: 0.066 | K39: 0 | L39: 0 | M39: 0.66 | N39: 12 | O39: 39 | P39: 8.4 | Q39: 0.66
C40: Итого | F40: =SUM(F35:F39) -> 38.62 | G40: =SUM(G35:G39) -> 16.24 | H40: =SUM(H35:H39) -> 94.33 | I40: =SUM(I35:I39) -> 678.9 | J40: =SUM(J35:J39) -> 0.316 | K40: =SUM(K35:K39) -> 18.73 | L40: =SUM(L35:L39) -> 24.05 | M40: =SUM(M35:M39) -> 1.06 | N40: =SUM(N35:N39) -> 140.98 | O40: =SUM(O35:O39) -> 498.32 | P40: =SUM(P35:P39) -> 113.69 | Q40: =SUM(Q35:Q39) -> 7.16
C42: 3 день
C43: Завтрак
A44: 1/2011ДеЛи | B44: Масло сливочное (порционно) | E44: 15 | F44: 0 | G44: 12.3 | H44: 0.15 | I44: 112.5 | J44: 0 | K44: 0 | L44: 88.5 | M44: 0.1 | N44: 1.5 | O44: 3 | P44: 0 | Q44: 0
A45: 182/2015ДеЛи | B45: Каша геркулесовая молочная с маслом сливочным | E45: 210 | F45: 7.82 | G45: 12.83 | H45: 34.24 | I45: 285 | J45: 0.2 | K45: 1.17 | L45: 54.6 | M45: 0.5 | N45: 152.76 | O45: 230 | P45: 60.66 | Q45: 1.71
A46: 693/2004 | B46: Какао с молоком | E46: 200 | F46: 3.78 | G46: 0.67 | H46: 21 | I46: 105 | J46: 0.2 | K46: 1.33 | L46: 0 | M46: 0 | N46: 133.33 | O46: 111.11 | P46: 25.56 | Q46: 2
B47: Хлеб сельский 1 сорт | E47: 60 | F47: 4.56 | G47: 0.54 | H47: 28.02 | I47: 135.18 | J47: 0.09 | K47: 0 | L47: 0 | M47: 0.2 | N47: 13.8 | O47: 50.4 | P47: 19.8 | Q47: 1.14
C48: Итого | F48: =SUM(F44:F47) -> 16.16 | G48: 26.34 | H48: 83.41 | I48: 637.68 | J48: 0.49 | K48: 2.5 | L48: 143.1 | M48: 0.8 | N48: 301.39 | O48: 394.51 | P48: 106.02 | Q48: 4.85
C50: Обед
A51: 45/2011ДеЛи | B51: Салат из белокочанной капусты | E51: 100 | F51: 1.41 | G51: 5.08 | H51: 9.02 | I51: 87.4 | J51: 0.03 | K51: 32.45 | L51: 0 | M51: 1.392 | N51: 37.37 | O51: 27.61 | P51: 15.16 | Q51: 0.51
A52: 246/2011ДеЛи | B52: Гуляш из отварной говядины | E52: 85 | F52: 12.55 | G52: 12.99 | H52: 4.01 | I52: 182.25 | J52: 0.07 | K52: 5.07 | L52: 1.49 | M52: 2.25 | N52: 30.52 | O52: 119.19 | P52: 24.03 | Q52: 2.1
A53: 309/2011ДеЛи | B53: Макароные изделя отварные | E53: 200 | F53: 17.54 | G53: 18.7 | H53: 115.86 | I53: 673.02 | J53: 0.32 | K53: 0 | L53: 0 | M53: 10.62 | N53: 3.1 | O53: 146.74 | P53: 27.4 | Q53: 3.1
A54: 685/2004 | B54: Чай с сахаром | E54: 200/15 | F54: 0.2 | G54: 0 | H54: 13.7 | I54: 56 | J54: 0.008 | K54: 3.75 | L54: 0 | M54: 0.075 | N54: 9.97 | O54: 7.5 | P54: 6.5 | Q54: 0.197
B55: Хлеб сельский 1 сорт | E55: 40 | F55: 2.6 | G55: 0.4 | H55: 14 | I55: 70 | J55: 0.02 | K55: 0 | L55: 0 | M55: 0.4 | N55: 9.4 | O55: 42.2 | P55: 12.6 | Q55: 1.04
B56: Хлеб белый 1 сорт | E56: 60 | F56: 4.56 | G56: 0.48 | H56: 29.52 | I56: 142 | J56: 0.066 | K56: 0 | L56: 0 | M56: 0.66 | N56: 12 | O56: 39 | P56: 8.4 | Q56: 0.66
C57: Итого | F57: =SUM(F51:F56) -> 38.86 | G57: 37.65 | H57: 186.11 | I57: 1210.67 | J57: 0.514 | K57: 41.27 | L57: 1.49 | M57: 15.397 | N57: 102.36 | O57: 382.24 | P57: 94.09 | Q57: 7.607
C59: 4 день
C60: Завтрак
A61: 97/2004 | B61: Сыр (порционно) | E61: 20 | F61: 4.64 | G61: 5.9 | H61: 0 | I61: 72.8 | J61: 0.01 | K61: 0.14 | L61: 52 | M61: 0 | N61: 176 | O61: 100 | P61: 7 | Q61: 0.2
A62: 181/2015ДеЛи | B62: Каша манная молочная с маслом | E62: 210 | F62: 6.11 | G62: 10.72 | H62: 32.38 | I62: 251 | J62: 0.14 | K62: 0 | L62: 0 | M62: 1.17 | N62: 133.77 | O62: 105 | P62: 20.3 | Q62: 0.47
A63: 685/2004 | B63: Чай с сахаром | E63: 200/15 | F63: 0.2 | G63: 0 | H63: 13.7 | I63: 56 | J63: 0.008 | K63: 3.75 | L63: 0 | M63: 0.075 | N63: 9.97 | O63: 7.5 | P63: 6.5 | Q63: 0.197
B64: Хлеб сельский 1 сорт | E64: 60 | F64: 4.56 | G64: 0.54 | H64: 28.02 | I64: 135.18 | J64: 0.09 | K64: 0 | L64: 0 | M64: 0.2 | N64: 13.8 | O64: 50.4 | P64: 19.8 | Q64: 1.14
C65: Итого | F65: =SUM(F61:F64) -> 15.51 | G65: 17.16 | H65: 74.1 | I65: 514.98 | J65: 0.248 | K65: 3.89 | L65: 52 | M65: 1.445 | N65: 333.54 | O65: 262.9 | P65: 53.6 | Q65: 2.007
C67: Обед
A68: ттк | B68: Салат из моркови и яблок | E68: 100 | F68: 0.86 | G68: 5.22 | H68: 7.87 | I68: 81.9 | J68: 0.05 | K68: 6.95 | L68: 0 | M68: 2.49 | N68: 21.19 | O68: 33.98 | P68: 24 | Q68: 1.32
A69: 234/2015 | B69: Котлеты рыбные | E69: 100 | F69: 12.16 | G69: 4.61 | H69: 14.95 | I69: 219.35 | J69: 0.1 | K69: 0.63 | L69: 10 | M69: 5 | N69: 68.89 | O69: 150.12 | P69: 38.91 | Q69: 1.39
A70: 128/2015ДеЛи | B70: Пюре картофельное | E70: 200/10 | F70: 4.34 | G70: 12.82 | H70: 25.18 | I70: 241 | J70: 0.163 | K70: 24.92 | L70: 25.5 | M70: 0.181 | N70: 58.32 | O70: 97.336 | P70: 38.36 | Q70: 1.44
A71: 693/2004 | B71: Какао с молоком | E71: 200 | F71: 3.78 | G71: 0.67 | H71: 21 | I71: 105 | J71: 0.2 | K71: 1.33 | L71: 0 | M71: 0 | N71: 133.33 | O71: 111.11 | P71: 25.56 | Q71: 2
B72: Хлеб сельский 1 сорт | E72: 40 | F72: 2.6 | G72: 0.4 | H72: 14 | I72: 70 | J72: 0.02 | K72: 0 | L72: 0 | M72: 0.4 | N72: 9.4 | O72: 42.2 | P72: 12.6 | Q72: 1.04
B73: Хлеб белый 1 сорт | E73: 60 | F73: 4.56 | G73: 0.48 | H73: 29.52 | I73: 142 | J73: 0.066 | K73: 0 | L73: 0 | M73: 0.66 | N73: 12 | O73: 39 | P73: 8.4 | Q73: 0.66
C74: Итого | F74: =SUM(F68:F73) -> 28.3 | G74: =SUM(G68:G73) -> 24.2 | H74: =SUM(H68:H73) -> 112.52 | I74: =SUM(I68:I73) -> 859.25 | J74: =SUM(J68:J73) -> 0.599 | K74: =SUM(K68:K73) -> 33.83 | L74: =SUM(L68:L73) -> 35.5 | M74: =SUM(M68:M73) -> 8.731 | N74: =SUM(N68:N73) -> 303.13 | O74: =SUM(O68:O73) -> 473.746 | P74: =SUM(P68:P73) -> 147.83 | Q74: =SUM(Q68:Q73) -> 7.85
C76: 5 день
C77: Завтрак
A78: 183/2015ДеЛи | B78: Каша жидкая молочная из гречневой крупы | E78: 210 | F78: 9.09 | G78: 12.99 | H78: 35.18 | I78: 295 | J78: 0.15 | K78: 1.64 | L78: 27.99 | M78: 0 | N78: 183.58 | O78: 102.9 | P78: 99.23 | Q78: 2.87
A79: 404/2015 | B79: Оладьи с творогом | E79: 200 | F79: 18.19 | G79: 16.44 | H79: 75.94 | I79: 527.06 | J79: 0 | K79: 0.86 | L79: 0 | M79: 0 | N79: 246.73 | O79: 0 | P79: 63.99 | Q79: 2.27
A80: 692/2004 | B80: Кофейный напиток с молоком | E80: 200 | F80: 2.5 | G80: 1.8 | H80: 20.5 | I80: 108 | J80: 0 | K80: 0.26 | L80: 0.05 | M80: 0 | N80: 53.33 | O80: 39.15 | P80: 6.09 | Q80: 0.1
B81: Хлеб сельский 1 сорт | E81: 60 | F81: 4.56 | G81: 0.54 | H81: 28.02 | I81: 135.18 | J81: 0.09 | K81: 0 | L81: 0 | M81: 0.2 | N81: 13.8 | O81: 50.4 | P81: 19.8 | Q81: 1.14
C82: Итого | F82: =SUM(F78:F81) -> 34.34 | G82: 31.77 | H82: 159.64 | I82: 1065.24 | J82: 0.24 | K82: 2.76 | L82: 28.04 | M82: 0.2 | N82: 497.44 | O82: 192.45 | P82: 189.11 | Q82: 6.38
C84: Обед
A85: 52/2011ДеЛи | B85: Салат из свеклы отварной | E85: 100 | F85: 1.43 | G85: 6.09 | H85: 8.36 | I85: 93.9 | J85: 0.02 | K85: 9.5 | L85: 0 | M85: 0 | N85: 35.15 | O85: 40.97 | P85: 20.9 | Q85: 1.33
A86: 284/2011ДеЛи | B86: Запеканка картофельная с мясом,маслом | E86: 170 | F86: 18.27 | G86: 20.54 | H86: 28.74 | I86: 372.49 | J86: 0.24 | K86: 5.62 | L86: 0.04 | M86: 5.026 | N86: 33.2 | O86: 203.85 | P86: 63.26 | Q86: 3.65
A87: 686/2004 | B87: Чай с сахаром и лимоном | E87: 200/15/7 | F87: 0.2 | G87: 0.1 | H87: 13.9 | I87: 57 | J87: 0 | K87: 1.12 | L87: 0 | M87: 0.01 | N87: 2.86 | O87: 1.34 | P87: 0.73 | Q87: 0.08
B88: Хлеб сельский 1 сорт | E88: 40 | F88: 2.6 | G88: 0.4 | H88: 14 | I88: 70 | J88: 0.02 | K88: 0 | L88: 0 | M88: 0.4 | N88: 9.4 | O88: 42.2 | P88: 12.6 | Q88: 1.04
B89: Хлеб белый 1 сорт | E89: 60 | F89: 4.56 | G89: 0.48 | H89: 29.52 | I89: 142 | J89: 0.066 | K89: 0 | L89: 0 | M89: 0.66 | N89: 12 | O89: 39 | P89: 8.4 | Q89: 0.66
C90: Итого | F90: =SUM(F85:F89) -> 27.06 | G90: =SUM(G85:G89) -> 27.61 | H90: =SUM(H85:H89) -> 94.52 | I90: =SUM(I85:I89) -> 735.39 | J90: =SUM(J85:J89) -> 0.346 | K90: =SUM(K85:K89) -> 16.24 | L90: =SUM(L85:L89) -> 0.04 | M90: =SUM(M85:M89) -> 6.096 | N90: =SUM(N85:N89) -> 92.61 | O90: =SUM(O85:O89) -> 327.36 | P90: =SUM(P85:P89) -> 105.89 | Q90: =SUM(Q85:Q89) -> 6.76
C92: 6 день
C93: Завтрак
A94: 45/2011ДеЛи | B94: Салат из белокочанной капусты | E94: 100 | F94: 1.41 | G94: 5.08 | H94: 9.02 | I94: 87.4 | J94: 0.03 | K94: 32.45 | L94: 0 | M94: 1.392 | N94: 37.37 | O94: 27.61 | P94: 15.16 | Q94: 0.51
A95: 243/2015ДеЛи | B95: Сосиски отварные | E95: 100 | F95: 12 | G95: 7.6 | H95: 16 | I95: 180 | J95: 0.3 | K95: 0 | L95: 0 | M95: 0.5 | N95: 33.4 | O95: 182.8 | P95: 19.78 | Q95: 2.4
A96: 511/2004 | B96: Рис отварной | E96: 200 | F96: 4.87 | G96: 7.17 | H96: 48.8 | I96: 279.6 | J96: 0.06 | K96: 0 | L96: 53.2 | M96: 0.36 | N96: 3.2 | O96: 109.8 | P96: 25.33 | Q96: 0.7
A97: 685/2004 | B97: Чай с сахаром | E97: 200/15 | F97: 0.2 | G97: 0 | H97: 13.7 | I97: 56 | J97: 0.008 | K97: 3.75 | L97: 0 | M97: 0.075 | N97: 9.97 | O97: 7.5 | P97: 6.5 | Q97: 0.197
B98: Хлеб сельский 1 сорт | E98: 40 | F98: 2.6 | G98: 0.4 | H98: 14 | I98: 70 | J98: 0.02 | K98: 0 | L98: 0 | M98: 0.4 | N98: 9.4 | O98: 42.2 | P98: 12.6 | Q98: 1.04
B99: Хлеб белый 1 сорт | E99: 60 | F99: 4.56 | G99: 0.48 | H99: 29.52 | I99: 142 | J99: 0.066 | K99: 0 | L99: 0 | M99: 0.66 | N99: 12 | O99: 39 | P99: 8.4 | Q99: 0.66
C100: Итого | F100: =SUM(F94:F99) -> 25.64 | G100: 20.73 | H100: 131.04 | I100: 815 | J100: 0.484 | K100: 36.2 | L100: 53.2 | M100: 3.387 | N100: 105.34 | O100: 408.91 | P100: 87.77 | Q100: 5.507
C102: 7 день
C103: Завтрак
A104: 97/2004 | B104: Сыр (порционно) | E104: 20 | F104: 4.64 | G104: 5.9 | H104: 0 | I104: 72.8 | J104: 0.01 | K104: 0.14 | L104: 52 | M104: 0 | N104: 176 | O104: 100 | P104: 7 | Q104: 0.2
A105: 181/2015ДеЛи | B105: Каша манная молочная с маслом | E105: 210 | F105: 6.11 | G105: 10.72 | H105: 32.38 | I105: 251 | J105: 0.14 | K105: 0 | L105: 0 | M105: 1.17 | N105: 133.77 | O105: 105 | P105: 20.3 | Q105: 0.47
A106: 685/2004 | B106: Чай с сахаром | E106: 200/15 | F106: 0.2 | G106: 0 | H106: 13.7 | I106: 56 | J106: 0.008 | K106: 3.75 | L106: 0 | M106: 0.075 | N106: 9.97 | O106: 7.5 | P106: 6.5 | Q106: 0.197
B107: Хлеб сельский 1 сорт | E107: 60 | F107: 4.56 | G107: 0.54 | H107: 28.02 | I107: 135.18 | J107: 0.09 | K107: 0 | L107: 0 | M107: 0.2 | N107: 13.8 | O107: 50.4 | P107: 19.8 | Q107: 1.14
C108: Итого | F108: =SUM(F104:F107) -> 15.51 | G108: 17.16 | H108: 74.1 | I108: 514.98 | J108: 0.248 | K108: 3.89 | L108: 52 | M108: 1.445 | N108: 333.54 | O108: 262.9 | P108: 53.6 | Q108: 2.007
C110: Обед
A111: 52/2011ДеЛи | B111: Салат из свеклы отварной | E111: 100 | F111: 1.43 | G111: 6.09 | H111: 8.36 | I111: 93.9 | J111: 0.02 | K111: 9.5 | L111: 0 | M111: 0 | N111: 35.15 | O111: 40.97 | P111: 20.9 | Q111: 1.33
A112: 293/2011ДеЛи | B112: Птица запеченая | E112: 100 | F112: 22.06 | G112: 18.23 | H112: 5.88 | I112: 276.25 | J112: 0.06 | K112: 0.03 | L112: 53.75 | M112: 0 | N112: 68.13 | O112: 166.13 | P112: 25.38 | Q112: 2.03
A113: 302/2011 | B113: Каша гречневая рассыпчатая | E113: 200 | F113: 11.5 | G113: 8.12 | H113: 51.52 | I113: 325 | J113: 0.14 | K113: 0 | L113: 1.54 | M113: 3.42 | N113: 19.6 | O113: 29.54 | P113: 1.9 | Q113: 1.6
A114: 693/2004 | B114: Какао с молоком | E114: 200 | F114: 3.78 | G114: 0.67 | H114: 21 | I114: 105 | J114: 0.2 | K114: 1.33 | L114: 0 | M114: 0 | N114: 133.33 | O114: 111.11 | P114: 25.56 | Q114: 2
B115: Хлеб сельский 1 сорт | E115: 40 | F115: 2.6 | G115: 0.4 | H115: 14 | I115: 70 | J115: 0.02 | K115: 0 | L115: 0 | M115: 0.4 | N115: 9.4 | O115: 42.2 | P115: 12.6 | Q115: 1.04
B116: Хлеб белый 1 сорт | E116: 60 | F116: 4.56 | G116: 0.48 | H116: 29.52 | I116: 142 | J116: 0.066 | K116: 0 | L116: 0 | M116: 0.66 | N116: 12 | O116: 39 | P116: 8.4 | Q116: 0.66
C117: Итого | F117: =SUM(F111:F116) -> 45.93 | G117: =SUM(G111:G116) -> 33.99 | H117: =SUM(H111:H116) -> 130.28 | I117: =SUM(I111:I116) -> 1012.15 | J117: =SUM(J111:J116) -> 0.506 | K117: =SUM(K111:K116) -> 10.86 | L117: =SUM(L111:L116) -> 55.29 | M117: =SUM(M111:M116) -> 4.48 | N117: =SUM(N111:N116) -> 277.61 | O117: =SUM(O111:O116) -> 428.95 | P117: =SUM(P111:P116) -> 94.74 | Q117: =SUM(Q111:Q116) -> 8.66
C119: 8день
C120: Завтрак
A121: 1/2011ДеЛи | B121: Масло сливочное (порционно) | E121: 15 | F121: 0 | G121: 12.3 | H121: 0.15 | I121: 112.5 | J121: 0 | K121: 0 | L121: 88.5 | M121: 0.1 | N121: 1.5 | O121: 3 | P121: 0 | Q121: 0 | T121: 5
A122: 182/2015ДеЛи | B122: Каша геркулесовая молочная с маслом сливочным | E122: 210 | F122: 7.82 | G122: 12.83 | H122: 34.24 | I122: 285 | J122: 0.2 | K122: 1.17 | L122: 54.6 | M122: 0.5 | N122: 152.76 | O122: 230 | P122: 60.66 | Q122: 1.71
A123: 693/2004 | B123: Какао с молоком | E123: 200 | F123: 3.78 | G123: 0.67 | H123: 21 | I123: 105 | J123: 0.2 | K123: 1.33 | L123: 0 | M123: 0 | N123: 133.33 | O123: 111.11 | P123: 25.56 | Q123: 2
B124: Хлеб сельский 1 сорт | E124: 60 | F124: 4.56 | G124: 0.54 | H124: 28.02 | I124: 135.18 | J124: 0.09 | K124: 0 | L124: 0 | M124: 0.2 | N124: 13.8 | O124: 50.4 | P124: 19.8 | Q124: 1.14
C125: Итого | F125: =SUM(F121:F124) -> 16.16 | G125: 26.34 | H125: 83.41 | I125: 637.68 | J125: 0.49 | K125: 2.5 | L125: 143.1 | M125: 0.8 | N125: 301.39 | O125: 394.51 | P125: 106.02 | Q125: 4.85
C127: Обед
A128: ттк | B128: Салат из моркови и яблок | E128: 100 | F128: 0.86 | G128: 5.22 | H128: 7.87 | I128: 81.9 | J128: 0.05 | K128: 6.95 | L128: 0 | M128: 2.49 | N128: 21.19 | O128: 33.98 | P128: 24 | Q128: 1.32
A129: 291/2011ДеЛи | B129: Плов с птицей | E129: 260 | F129: 25.38 | G129: 21.25 | H129: 44.61 | I129: 471.25 | J129: 0.08 | K129: 1.26 | L129: 60 | M129: 5.799 | N129: 56.38 | O129: 249.13 | P129: 59.38 | Q129: 2.74
A130: 686/2004 | B130: Чай с сахаром и лимоном | E130: 200/15/7 | F130: 0.2 | G130: 0.1 | H130: 13.9 | I130: 57 | J130: 0 | K130: 1.12 | L130: 0 | M130: 0.01 | N130: 2.86 | O130: 1.34 | P130: 0.73 | Q130: 0.08
B131: Хлеб сельский 1 сорт | E131: 40 | F131: 2.6 | G131: 0.4 | H131: 14 | I131: 70 | J131: 0.02 | K131: 0 | L131: 0 | M131: 0.4 | N131: 9.4 | O131: 42.2 | P131: 12.6 | Q131: 1.04
B132: Хлеб белый 1 сорт | E132: 60 | F132: 4.56 | G132: 0.48 | H132: 29.52 | I132: 142 | J132: 0.066 | K132: 0 | L132: 0 | M132: 0.66 | N132: 12 | O132: 39 | P132: 8.4 | Q132: 0.66
C133: Итого | F133: =SUM(F128:F132) -> 33.6 | G133: 27.45 | H133: 109.9 | I133: 822.15 | J133: 0.216 | K133: 9.33 | L133: 60 | M133: 9.359 | N133: 101.83 | O133: 365.65 | P133: 105.11 | Q133: 5.84
C135: 9день
C136: Завтрак
A137: 97/2004 | B137: Сыр (порционно) | E137: 15 | F137: 3.95 | G137: 4.99 | H137: 0 | I137: 55 | J137: 0.15 | K137: 0.15 | L137: 0 | M137: 0.3 | N137: 6.8 | O137: 4.8 | P137: 0.9 | Q137: 0.45
A138: 182/2015ДеЛи | B138: Каша рисовая молочная с маслом сливочным | E138: 210/10 | F138: 5.1 | G138: 10.72 | H138: 33.42 | I138: 251 | J138: 0.02 | K138: 1.17 | L138: 23.7 | M138: 0.2 | N138: 130.09 | O138: 94.2 | P138: 30.12 | Q138: 0.47
A139: 685/2004 | B139: Чай с сахаром | E139: 200/15 | F139: 0.2 | G139: 0 | H139: 13.7 | I139: 56 | J139: 0.008 | K139: 3.75 | L139: 0 | M139: 0.075 | N139: 9.97 | O139: 7.5 | P139: 6.5 | Q139: 0.197
B140: Хлеб сельский 1 сорт | E140: 60 | F140: 4.56 | G140: 0.54 | H140: 28.02 | I140: 135.18 | J140: 0.09 | K140: 0 | L140: 0 | M140: 0.2 | N140: 13.8 | O140: 50.4 | P140: 19.8 | Q140: 1.14
C141: Итого | F141: =SUM(F137:F140) -> 13.81 | G141: 16.25 | H141: 75.14 | I141: 497.18 | J141: 0.268 | K141: 5.07 | L141: 23.7 | M141: 0.775 | N141: 160.66 | O141: 156.9 | P141: 57.32 | Q141: 2.257
C143: Обед
A144: 45/2011ДеЛи | B144: Салат из белокочанной капусты | E144: 100 | F144: 1.41 | G144: 5.08 | H144: 9.02 | I144: 87.4 | J144: 0.03 | K144: 32.45 | L144: 0 | M144: 1.392 | N144: 37.37 | O144: 27.61 | P144: 15.16 | Q144: 0.51
A145: 234/2015 | B145: Котлеты рыбные | E145: 100 | F145: 12.16 | G145: 4.61 | H145: 14.95 | I145: 219.35 | J145: 0.1 | K145: 0.63 | L145: 10 | M145: 5 | N145: 68.89 | O145: 150.12 | P145: 38.91 | Q145: 1.39
A146: 128/2015ДеЛи | B146: Пюре картофельное | E146: 200/10 | F146: 4.34 | G146: 12.82 | H146: 25.18 | I146: 241 | J146: 0.163 | K146: 24.92 | L146: 25.5 | M146: 0.181 | N146: 58.32 | O146: 97.336 | P146: 38.36 | Q146: 1.44
A147: 685/2004 | B147: Чай с сахаром | E147: 200/15 | F147: 0.2 | G147: 0 | H147: 13.7 | I147: 56 | J147: 0.008 | K147: 3.75 | L147: 0 | M147: 0.075 | N147: 9.97 | O147: 7.5 | P147: 6.5 | Q147: 0.197
B148: Хлеб сельский 1 сорт | E148: 40 | F148: 2.6 | G148: 0.4 | H148: 14 | I148: 70 | J148: 0.02 | K148: 0 | L148: 0 | M148: 0.4 | N148: 9.4 | O148: 42.2 | P148: 12.6 | Q148: 1.04
B149: Хлеб белый 1 сорт | E149: 60 | F149: 4.56 | G149: 0.48 | H149: 29.52 | I149: 142 | J149: 0.066 | K149: 0 | L149: 0 | M149: 0.66 | N149: 12 | O149: 39 | P149: 8.4 | Q149: 0.66
C150: Итого | F150: =SUM(F144:F149) -> 25.27 | G150: =SUM(G144:G149) -> 23.39 | H150: =SUM(H144:H149) -> 106.37 | I150: =SUM(I144:I149) -> 815.75 | J150: =SUM(J144:J149) -> 0.387 | K150: =SUM(K144:K149) -> 61.75 | L150: =SUM(L144:L149) -> 35.5 | M150: =SUM(M144:M149) -> 7.708 | N150: =SUM(N144:N149) -> 195.95 | O150: =SUM(O144:O149) -> 363.766 | P150: =SUM(P144:P149) -> 119.93 | Q150: =SUM(Q144:Q149) -> 5.237
C152: 10день
C153: Завтрак
A154: 97/2004 | B154: Сыр (порционно) | E154: 20 | F154: 4.64 | G154: 5.9 | H154: 0 | I154: 72.8 | J154: 0.01 | K154: 0.14 | L154: 52 | M154: 0 | N154: 176 | O154: 100 | P154: 7 | Q154: 0.2
A155: 181/2015ДеЛи | B155: Каша манная молочная с маслом | E155: 210 | F155: 6.11 | G155: 10.72 | H155: 32.38 | I155: 251 | J155: 0.14 | K155: 0 | L155: 0 | M155: 1.17 | N155: 133.77 | O155: 105 | P155: 20.3 | Q155: 0.47
A156: 685/2004 | B156: Чай с сахаром | E156: 200/15 | F156: 0.2 | G156: 0 | H156: 13.7 | I156: 56 | J156: 0.008 | K156: 3.75 | L156: 0 | M156: 0.075 | N156: 9.97 | O156: 7.5 | P156: 6.5 | Q156: 0.197
B157: Хлеб сельский 1 сорт | E157: 60 | F157: 4.56 | G157: 0.54 | H157: 28.02 | I157: 135.18 | J157: 0.09 | K157: 0 | L157: 0 | M157: 0.2 | N157: 13.8 | O157: 50.4 | P157: 19.8 | Q157: 1.14
C158: Итого | F158: =SUM(F154:F157) -> 15.51 | G158: 17.16 | H158: 74.1 | I158: 514.98 | J158: 0.248 | K158: 3.89 | L158: 52 | M158: 1.445 | N158: 333.54 | O158: 262.9 | P158: 53.6 | Q158: 2.007
C160: Обед
A161: ттк | B161: Салат из моркови и яблок | E161: 100 | F161: 0.86 | G161: 5.22 | H161: 7.87 | I161: 81.9 | J161: 0.05 | K161: 6.95 | L161: 0 | M161: 2.49 | N161: 21.19 | O161: 33.98 | P161: 24 | Q161: 1.32
A162: 293/2011ДеЛи | B162: Птица запеченая | E162: 100 | F162: 22.06 | G162: 18.23 | H162: 5.88 | I162: 276.25 | J162: 0.06 | K162: 0.03 | L162: 53.75 | M162: 0 | N162: 68.13 | O162: 166.13 | P162: 25.38 | Q162: 2.03
A163: 309/2011ДеЛи | B163: Макароные изделя отварные | E163: 200 | F163: 17.54 | G163: 18.7 | H163: 115.86 | I163: 673.02 | J163: 0.32 | K163: 0 | L163: 0 | M163: 10.62 | N163: 3.1 | O163: 146.74 | P163: 27.4 | Q163: 3.1
A164: 692/2004 | B164: Кофейный напиток с молоком | E164: 200 | F164: 2.5 | G164: 1.8 | H164: 20.5 | I164: 108 | J164: 0 | K164: 0.26 | L164: 0.05 | M164: 0 | N164: 53.33 | O164: 39.15 | P164: 6.09 | Q164: 0.1
B165: Хлеб сельский 1 сорт | E165: 40 | F165: 2.6 | G165: 0.4 | H165: 14 | I165: 70 | J165: 0.02 | K165: 0 | L165: 0 | M165: 0.4 | N165: 9.4 | O165: 42.2 | P165: 12.6 | Q165: 1.04
B166: Хлеб белый 1 сорт | E166: 60 | F166: 4.56 | G166: 0.48 | H166: 29.52 | I166: 142 | J166: 0.066 | K166: 0 | L166: 0 | M166: 0.66 | N166: 12 | O166: 39 | P166: 8.4 | Q166: 0.66
C167: Итого | F167: =SUM(F161:F166) -> 50.12 | G167: =SUM(G161:G166) -> 44.83 | H167: =SUM(H161:H166) -> 193.63 | I167: =SUM(I161:I166) -> 1351.17 | J167: =SUM(J161:J166) -> 0.516 | K167: =SUM(K161:K166) -> 7.24 | L167: =SUM(L161:L166) -> 53.8 | M167: =SUM(M161:M166) -> 14.17 | N167: =SUM(N161:N166) -> 167.15 | O167: =SUM(O161:O166) -> 467.2 | P167: =SUM(P161:P166) -> 103.87 | Q167: =SUM(Q161:Q166) -> 8.25
C169: 11 день
C170: Завтрак
A171: 1/2011ДеЛи | B171: Масло сливочное (порционно) | E171: 15 | F171: 0 | G171: 12.3 | H171: 0.15 | I171: 112.5 | J171: 0 | K171: 0 | L171: 88.5 | M171: 0.1 | N171: 1.5 | O171: 3 | P171: 0 | Q171: 0
A172: 182/2015ДеЛи | B172: Каша жидкая молочная пшенная | E172: 210 | F172: 7.51 | G172: 11.72 | H172: 37.05 | I172: 285 | J172: 0 | K172: 1.17 | L172: 0 | M172: 0 | N172: 138.1 | O172: 0 | P172: 47.6 | Q172: 1.23
A173: 685/2004 | B173: Чай с сахаром | E173: 200/15 | F173: 0.2 | G173: 0 | H173: 13.7 | I173: 56 | J173: 0.008 | K173: 3.75 | L173: 0 | M173: 0.075 | N173: 9.97 | O173: 7.5 | P173: 6.5 | Q173: 0.197
B174: Хлеб сельский 1 сорт | E174: 60 | F174: 4.56 | G174: 0.54 | H174: 28.02 | I174: 135.18 | J174: 0.09 | K174: 0 | L174: 0 | M174: 0.2 | N174: 13.8 | O174: 50.4 | P174: 19.8 | Q174: 1.14
C175: Итого | F175: =SUM(F171:F174) -> 12.27 | G175: 24.56 | H175: 78.92 | I175: 588.68 | J175: 0.098 | K175: 4.92 | L175: 88.5 | M175: 0.375 | N175: 163.37 | O175: 60.9 | P175: 73.9 | Q175: 2.567
C177: Обед
A178: 45/2011ДеЛи | B178: Салат из белокочанной капусты | E178: 100 | F178: 1.41 | G178: 5.08 | H178: 9.02 | I178: 87.4 | J178: 0.03 | K178: 32.45 | L178: 0 | M178: 1.392 | N178: 37.37 | O178: 27.61 | P178: 15.16 | Q178: 0.51
A179: 290/2011ДеЛи | B179: Птица тушеная | E179: 100 | F179: 22.4 | G179: 18.23 | H179: 7.03 | I179: 281.25 | J179: 0.08 | K179: 0.68 | L179: 53.75 | M179: 0 | N179: 70.13 | O179: 172.75 | P179: 29.88 | Q179: 2.21
A180: 511/2004 | B180: Рис отварной | E180: 200 | F180: 4.87 | G180: 7.17 | H180: 48.8 | I180: 279.6 | J180: 0.06 | K180: 0 | L180: 53.2 | M180: 0.36 | N180: 3.2 | O180: 109.8 | P180: 25.33 | Q180: 0.7
A181: 686/2004 | B181: Чай с сахаром и лимоном | E181: 200/15/7 | F181: 0.2 | G181: 0.1 | H181: 13.9 | I181: 57 | J181: 0 | K181: 1.12 | L181: 0 | M181: 0.01 | N181: 2.86 | O181: 1.34 | P181: 0.73 | Q181: 0.08
B182: Хлеб сельский 1 сорт | E182: 40 | F182: 2.6 | G182: 0.4 | H182: 14 | I182: 70 | J182: 0.02 | K182: 0 | L182: 0 | M182: 0.4 | N182: 9.4 | O182: 42.2 | P182: 12.6 | Q182: 1.04
B183: Хлеб белый 1 сорт | E183: 60 | F183: 4.56 | G183: 0.48 | H183: 29.52 | I183: 142 | J183: 0.066 | K183: 0 | L183: 0 | M183: 0.66 | N183: 12 | O183: 39 | P183: 8.4 | Q183: 0.66
C184: Итого | F184: =SUM(F178:F183) -> 36.04 | G184: =SUM(G178:G183) -> 31.46 | H184: =SUM(H178:H183) -> 122.27 | I184: =SUM(I178:I183) -> 917.25 | J184: =SUM(J178:J183) -> 0.256 | K184: =SUM(K178:K183) -> 34.25 | L184: =SUM(L178:L183) -> 106.95 | M184: =SUM(M178:M183) -> 2.822 | N184: =SUM(N178:N183) -> 134.96 | O184: =SUM(O178:O183) -> 392.7 | P184: =SUM(P178:P183) -> 92.1 | Q184: =SUM(Q178:Q183) -> 5.2
C186: 12 день
C187: Завтрак
A188: 52/2011ДеЛи | B188: Салат из свеклы отварной | E188: 100 | F188: 1.43 | G188: 6.09 | H188: 8.36 | I188: 93.9 | J188: 0.02 | K188: 9.5 | L188: 0 | M188: 0 | N188: 35.15 | O188: 40.97 | P188: 20.9 | Q188: 1.33
A189: ттк | B189: Пельмени отварные | E189: 200 | F189: 16.44 | G189: 16.66 | H189: 40 | I189: 375.55 | J189: 0.173 | K189: 2.76 | L189: 24.28 | M189: 1.4 | N189: 38.67 | O189: 212.7 | P189: 29.87 | Q189: 2.48
A190: 685/2004 | B190: Чай с сахаром | E190: 200/15 | F190: 0.2 | G190: 0 | H190: 13.7 | I190: 56 | J190: 0.008 | K190: 3.75 | L190: 0 | M190: 0.075 | N190: 9.97 | O190: 7.5 | P190: 6.5 | Q190: 0.197
B191: Хлеб сельский 1 сорт | E191: 40 | F191: 2.6 | G191: 0.4 | H191: 14 | I191: 70 | J191: 0.02 | K191: 0 | L191: 0 | M191: 0.4 | N191: 9.4 | O191: 42.2 | P191: 12.6 | Q191: 1.04
B192: Хлеб белый 1 сорт | E192: 60 | F192: 4.56 | G192: 0.48 | H192: 29.52 | I192: 142 | J192: 0.066 | K192: 0 | L192: 0 | M192: 0.66 | N192: 12 | O192: 39 | P192: 8.4 | Q192: 0.66
C193: Итого | F193: =SUM(F188:F192) -> 25.23 | G193: =SUM(G188:G192) -> 23.63 | H193: =SUM(H188:H192) -> 105.58 | I193: =SUM(I188:I192) -> 737.45 | J193: =SUM(J188:J192) -> 0.287 | K193: =SUM(K188:K192) -> 16.01 | L193: =SUM(L188:L192) -> 24.28 | M193: =SUM(M188:M192) -> 2.535 | N193: =SUM(N188:N192) -> 105.19 | O193: =SUM(O188:O192) -> 342.37 | P193: =SUM(P188:P192) -> 78.27 | Q193: =SUM(Q188:Q192) -> 5.707

Sheet Лист2

Sheet Лист3
